Workbook

Sheet Aktuální TABULKA
B1: Pravá FC Klička | C1: kolo: | D1: 1 | E1: =D1+1 -> 2 | F1: =E1+1 -> 3 | G1: 4 | H1: 5 | I1: 6 | J1: 7 | K1: 8 | L1: 9 | M1: 10 | N1: 11 | O1: 12 | P1: 13 | Q1: 14 | R1: 15 | S1: 16 | T1: 17 | U1: 18 | V1: =U1+1 -> 19 | W1: =V1+1 -> 20 | X1: =W1+1 -> 21 | Y1: =X1+1 -> 22 | Z1: =Y1+1 -> 23 | AA1: =Z1+1 -> 24 | AB1: =AA1+1 -> 25 | AC1: =AB1+1 -> 26 | AD1: =AC1+1 -> 27 | AE1: 28 | AF1: 29 | AG1: 30 | AH1: 31
B2: ZIMA2021 2022 | D2: =IF(WEEKDAY(D3,2)=1,"Po",IF(WEEKDAY(D3,2)=2,"Út",IF(WEEKDAY(D3,2)=3,"St",IF(WEEKDAY(D3,2)=4,"Čt",IF(WEEKDAY(D3,2)=5,"Pá",IF(WEEKDAY(D3,2)=6,"So","NE")))))) -> Po | E2: =IF(WEEKDAY(E3,2)=1,"Po",IF(WEEKDAY(E3,2)=2,"Út",IF(WEEKDAY(E3,2)=3,"St",IF(WEEKDAY(E3,2)=4,"Čt",IF(WEEKDAY(E3,2)=5,"Pá",IF(WEEKDAY(E3,2)=6,"So","NE")))))) -> Po | F2: Po | G2: Po | H2: Po | I2: Po | J2: Po | K2: Po | L2: Po | M2: Po | N2: Po | O2: Po | P2: Po | Q2: Út | R2: Po | S2: Po | T2: Po | U2: Po | V2: Po | W2: Po | X2: Po | Y2: Po | Z2: Po | AA2: Po | AB2: Po | AC2: Po | AD2: Po | AE2: Po | AF2: Po | AG2: Po | AH2: Po | AJ2: hráno | AK2: nehráno
D3: 2021-10-04 | E3: 2021-10-11 | F3: 2021-10-18 | G3: 2021-10-25 | H3: 2021-11-01 | I3: 2021-11-08 | J3: 2021-11-15 | K3: 2021-11-22 | L3: 2021-11-29 | M3: 2021-12-06 | N3: 2021-12-13 | O3: 2021-12-20 | P3: 2021-12-27 | Q3: 31.12. | R3: 2022-01-03 | S3: 2022-01-10 | T3: 2022-01-17 | U3: 2022-01-24 | V3: 2022-01-31 | W3: 2022-02-07 | X3: 2022-02-14 | Y3: 2022-02-21 | Z3: 2022-02-28 | AA3: 2022-03-07 | AB3: 2022-03-14 | AC3: 2022-03-21 | AD3: 2022-03-28 | AE3: 2022-04-04 | AF3: 2022-04-11 | AG3: 2022-04-18 | AH3: 2022-04-25 | AJ3: =COUNTA(D5:AH5) -> 25 | AK3: 3
C5: platba | D5: 14:5 | E5: 9:6 | F5: 16:7 | G5: 10:7 | H5: 8:5 | I5: 5:4 | J5: 2:0 | K5: 13:8 | L5: 13:6 | M5: 13:5 | N5: 10:2 | O5: 10:4 | P5: 14:11 | Q5: 22:17 | R5: 6:5 | S5: 4:3 | T5: 10:9 | U5: 11:7 | W5: 13:6 | X5: 7:2 | Y5: 4:1 | AA5: 12:6 | AB5: 6:4 | AC5: 5:4 | AE5: 7:5 | AI5: BODY | AJ5: minulé pořadí | AK5: POŘADÍ | AL5: Vývoj | AM5: HRÁČ | AN5: účasti | AO5: výhry | AP5: remízy | AQ5: prohry | AR5: skóre | AS5: docházka | AT5: úspěšnost
A6: =AK6 -> 1 | B6: Pája | C6: 1000 | E6: 3 | F6: 3 | G6: 1 | H6: 1 | I6: 3 | J6: 3 | K6: 1 | L6: 3 | M6: 1 | N6: 1 | O6: 3 | P6: 1 | Q6: 1 | R6: 1 | S6: 3 | T6: 1 | U6: 1 | W6: 3 | X6: 3 | Y6: 1 | AA6: 3 | AB6: 3 | AC6: 1 | AE6: 3 | AI6: =SUM(D6:AH6) -> 48 | AJ6: 2 | AK6: 1 | AL6: =AJ6-AK6 -> 1 | AM6: =B6 -> Pája | AN6: =COUNT(D6:AH6) -> 24 | AO6: 12 | AP6: 0 | AQ6: 12 | AR6: 6 | AS6: =+AN6/$AJ$3 -> 0.96 | AT6: =IF(AS6<0.5, "n.a.",(AO6+AP6/2)/AN6) -> 0.5
A7: =AK7 -> 2 | B7: Láďa S. | C7: 1000 | D7: 3 | F7: 3 | G7: 3 | H7: 3 | I7: 3 | J7: 1 | K7: 3 | L7: 3 | M7: 3 | N7: 1 | O7: 1 | Q7: 3 | R7: 1 | T7: 1 | U7: 3 | X7: 3 | AA7: 3 | AB7: 1 | AC7: 3 | AE7: 3 | AI7: =SUM(D7:AH7) -> 48 | AJ7: 3 | AK7: 2 | AL7: =AJ7-AK7 -> 1 | AM7: =B7 -> Láďa S. | AN7: =COUNT(D7:AH7) -> 20 | AO7: 14 | AP7: 0 | AQ7: 6 | AR7: 48 | AS7: =+AN7/$AJ$3 -> 0.8 | AT7: =IF(AS7<0.5, "n.a.",(AO7+AP7/2)/AN7) -> 0.7
A8: =AK8 -> 3 | B8: Rosťa | C8: 1000 | D8: 3 | E8: 1 | F8: 3 | H8: 3 | I8: 1 | J8: 2 | K8: 3 | L8: 3 | M8: 1 | N8: 3 | O8: 3 | R8: 3 | S8: 1 | T8: 3 | U8: 1 | W8: 1 | X8: 1 | Y8: 3 | AA8: 1 | AB8: 3 | AC8: 3 | AE8: 1 | AI8: =SUM(D8:AH8) -> 47 | AJ8: 1 | AK8: 3 | AL8: =AJ8-AK8 -> -2 | AM8: =B8 -> Rosťa | AN8: =COUNT(D8:AH8) -> 22 | AO8: 12 | AP8: 0 | AQ8: 9 | AR8: 18 | AS8: =+AN8/$AJ$3 -> 0.88 | AT8: =IF(AS8<0.5, "n.a.",(AO8+AP8/2)/AN8) -> 0.5454545455
A9: =AK9 -> 4 | B9: Kristalex | C9: 1000 | D9: 1 | F9: 1 | G9: 1 | H9: 3 | J9: 3 | L9: 3 | N9: 3 | O9: 3 | P9: 3 | R9: 1 | S9: 3 | T9: 1 | U9: 3 | W9: 3 | X9: 3 | Y9: 3 | AB9: 1 | AC9: 1 | AE9: 3 | AI9: =SUM(D9:AH9) -> 43 | AJ9: 4 | AK9: 4 | AL9: =AJ9-AK9 -> 0 | AM9: =B9 -> Kristalex | AN9: =COUNT(D9:AH9) -> 19 | AO9: 12 | AP9: 0 | AQ9: 7 | AR9: 25 | AS9: =+AN9/$AJ$3 -> 0.76 | AT9: =IF(AS9<0.5, "n.a.",(AO9+AP9/2)/AN9) -> 0.6315789474
A10: =AK10 -> 5 | B10: Marek | C10: 1000 | D10: 1 | E10: 3 | F10: 3 | G10: 3 | I10: 1 | J10: 2 | N10: 3 | O10: 3 | P10: 1 | R10: 3 | S10: 3 | T10: 1 | W10: 3 | X10: 1 | Y10: 3 | AA10: 1 | AB10: 3 | AC10: 1 | AE10: 1 | AI10: =SUM(D10:AH10) -> 40 | AJ10: 5 | AK10: 5 | AL10: =AJ10-AK10 -> 0 | AM10: =B10 -> Marek | AN10: =COUNT(D10:AH10) -> 19 | AO10: 10 | AP10: 0 | AQ10: 8 | AR10: 15 | AS10: =+AN10/$AJ$3 -> 0.76 | AT10: =IF(AS10<0.5, "n.a.",(AO10+AP10/2)/AN10) -> 0.5263157895
A11: =AK11 -> 6 | B11: Čuďa | C11: 1000 | D11: 1 | E11: 1 | F11: 3 | G11: 3 | H11: 1 | I11: 1 | J11: 2 | K11: 1 | L11: 1 | N11: 3 | O11: 3 | T11: 3 | U11: 1 | W11: 1 | X11: 1 | AA11: 3 | AB11: 3 | AC11: 3 | AE11: 3 | AI11: =SUM(D11:AH11) -> 38 | AJ11: 7 | AK11: 6 | AL11: =AJ11-AK11 -> 1 | AM11: =B11 -> Čuďa | AN11: =COUNT(D11:AH11) -> 19 | AO11: 9 | AP11: 0 | AQ11: 9 | AR11: -6 | AS11: =+AN11/$AJ$3 -> 0.76 | AT11: =IF(AS11<0.5, "n.a.",(AO11+AP11/2)/AN11) -> 0.4736842105
A12: =AK12 -> 7 | B12: Eman | G12: 1 | H12: 3 | I12: 3 | J12: 1 | K12: 3 | L12: 1 | M12: 3 | N12: 3 | O12: 1 | R12: 1 | S12: 3 | T12: 3 | U12: 3 | X12: 3 | AA12: 3 | AB12: 1 | AE12: 1 | AI12: =SUM(D12:AH12) -> 37 | AJ12: 6 | AK12: 7 | AL12: =AJ12-AK12 -> -1 | AM12: =B12 -> Eman | AN12: =COUNT(D12:AH12) -> 17 | AO12: 10 | AP12: 0 | AQ12: 7 | AR12: 19 | AS12: =+AN12/$AJ$3 -> 0.68 | AT12: =IF(AS12<0.5, "n.a.",(AO12+AP12/2)/AN12) -> 0.5882352941
A13: =AK13 -> 8 | B13: Michal | H13: 3 | J13: 3 | K13: 3 | L13: 1 | M13: 3 | N13: 1 | O13: 1 | R13: 3 | S13: 1 | U13: 1 | W13: 1 | Y13: 3 | AA13: 1 | AB13: 3 | AI13: =SUM(D13:AH13) -> 28 | AJ13: 8 | AK13: 8 | AL13: =AJ13-AK13 -> 0 | AM13: =B13 -> Michal | AN13: =COUNT(D13:AH13) -> 14 | AO13: 7 | AP13: 0 | AQ13: 7 | AR13: -15 | AS13: =+AN13/$AJ$3 -> 0.56 | AT13: =IF(AS13<0.5, "n.a.",(AO13+AP13/2)/AN13) -> 0.5
A14: =AK14 -> 9 | B14: Honza | C14: 1000 | D14: 3 | E14: 3 | F14: 1 | G14: 1 | N14: 3 | O14: 3 | Q14: 1 | R14: 3 | T14: 3 | U14: 3 | AI14: =SUM(D14:AH14) -> 24 | AJ14: 9 | AK14: 9 | AL14: =AJ14-AK14 -> 0 | AM14: =B14 -> Honza | AN14: =COUNT(D14:AH14) -> 10 | AO14: 7 | AP14: 0 | AQ14: 3 | AR14: 15 | AS14: =+AN14/$AJ$3 -> 0.4 | AT14: =IF(AS14<0.5, "n.a.",(AO14+AP14/2)/AN14) -> n.a.
A15: =AK15 -> 10 | B15: Venca | C15: 1000 | D15: 3 | G15: 1 | H15: 1 | I15: 3 | J15: 3 | P15: 1 | Q15: 1 | S15: 1 | X15: 3 | Y15: 1 | AA15: 1 | AB15: 1 | AC15: 1 | AE15: 1 | AI15: =SUM(D15:AH15) -> 22 | AJ15: 10 | AK15: 10 | AL15: =AJ15-AK15 -> 0 | AM15: =B15 -> Venca | AN15: =COUNT(D15:AH15) -> 14 | AO15: 4 | AP15: 0 | AQ15: 10 | AR15: -12 | AS15: =+AN15/$AJ$3 -> 0.56 | AT15: =IF(AS15<0.5, "n.a.",(AO15+AP15/2)/AN15) -> 0.2857142857
A16: =AK16 -> 11 | B16: Arpi | C16: 1000 | E16: 3 | I16: 1 | L16: 1 | O16: 1 | P16: 3 | R16: 1 | S16: 3 | U16: 3 | W16: 3 | X16: 1 | AI16: =SUM(D16:AH16) -> 20 | AJ16: 11 | AK16: 11 | AL16: =AJ16-AK16 -> 0 | AM16: =B16 -> Arpi | AN16: =COUNT(D16:AH16) -> 10 | AO16: 5 | AP16: 0 | AQ16: 5 | AR16: -2 | AS16: =+AN16/$AJ$3 -> 0.4 | AT16: =IF(AS16<0.5, "n.a.",(AO16+AP16/2)/AN16) -> n.a.
A17: =AK17 -> 12 | B17: Tomáš | H17: 1 | J17: 1 | K17: 1 | N17: 1 | O17: 1 | Q17: 1 | T17: 1 | W17: 3 | Y17: 1 | AA17: 3 | AB17: 1 | AC17: 1 | AE17: 3 | AI17: =SUM(D17:AH17) -> 19 | AJ17: 14 | AK17: 12 | AL17: =AJ17-AK17 -> 2 | AM17: =B17 -> Tomáš | AN17: =COUNT(D17:AH17) -> 13 | AO17: 3 | AP17: 0 | AQ17: 10 | AR17: -21 | AS17: =+AN17/$AJ$3 -> 0.52 | AT17: =IF(AS17<0.5, "n.a.",(AO17+AP17/2)/AN17) -> 0.2307692308
A18: =AK18 -> 13 | B18: Melis | D18: 3 | E18: 1 | F18: 1 | H18: 1 | I18: 3 | J18: 3 | K18: 3 | L18: 1 | M18: 1 | N18: 1 | O18: 1 | AI18: =SUM(D18:AH18) -> 19 | AJ18: 12 | AK18: 13 | AL18: =AJ18-AK18 -> -1 | AM18: =B18 -> Melis | AN18: =COUNT(D18:AH18) -> 11 | AO18: 4 | AP18: 0 | AQ18: 7 | AR18: -27 | AS18: =+AN18/$AJ$3 -> 0.44 | AT18: =IF(AS18<0.5, "n.a.",(AO18+AP18/2)/AN18) -> n.a.
A19: =AK19 -> 14 | B19: Aleš | N19: 1 | O19: 1 | Q19: 3 | R19: 1 | S19: 1 | T19: 3 | U19: 1 | W19: 1 | Y19: 3 | AC19: 3 | AI19: =SUM(D19:AH19) -> 18 | AJ19: 13 | AK19: 14 | AL19: =AJ19-AK19 -> -1 | AM19: =B19 -> Aleš | AN19: =COUNT(D19:AH19) -> 10 | AO19: 4 | AP19: 0 | AQ19: 6 | AR19: -17 | AS19: =+AN19/$AJ$3 -> 0.4 | AT19: =IF(AS19<0.5, "n.a.",(AO19+AP19/2)/AN19) -> n.a.
A20: =AK20 -> 15 | B20: Daniel | D20: 1 | O20: 1 | P20: 3 | R20: 3 | T20: 3 | AA20: 1 | AB20: 1 | AC20: 3 | AE20: 1 | AI20: =SUM(D20:AH20) -> 17 | AJ20: 15 | AK20: 15 | AL20: =AJ20-AK20 -> 0 | AM20: =B20 -> Daniel | AN20: =COUNT(D20:AH20) -> 9 | AO20: 4 | AP20: 0 | AQ20: 5 | AR20: -19 | AS20: =+AN20/$AJ$3 -> 0.36 | AT20: =IF(AS20<0.5, "n.a.",(AO20+AP20/2)/AN20) -> n.a.
A21: =AK21 -> 16 | B21: Karel | C21: 1000 | I21: 1 | J21: 2 | K21: 1 | L21: 3 | N21: 3 | O21: 3 | R21: 3 | AI21: =SUM(D21:AH21) -> 16 | AJ21: 16 | AK21: 16 | AL21: =AJ21-AK21 -> 0 | AM21: =B21 -> Karel | AN21: =COUNT(D21:AH21) -> 7 | AO21: 4 | AP21: 0 | AQ21: 2 | AR21: 16 | AS21: =+AN21/$AJ$3 -> 0.28 | AT21: =IF(AS21<0.5, "n.a.",(AO21+AP21/2)/AN21) -> n.a.
A22: =AK22 -> 17 | B22: Exi | E22: 3 | F22: 1 | G22: 3 | I22: 1 | J22: 1 | K22: 1 | O22: 3 | AI22: =SUM(D22:AH22) -> 13 | AJ22: 17 | AK22: 17 | AL22: =AJ22-AK22 -> 0 | AM22: =B22 -> Exi | AN22: =COUNT(D22:AH22) -> 7 | AO22: 3 | AP22: 0 | AQ22: 4 | AR22: -5 | AS22: =+AN22/$AJ$3 -> 0.28 | AT22: =IF(AS22<0.5, "n.a.",(AO22+AP22/2)/AN22) -> n.a.
A23: =AK23 -> 18 | B23: Posoldič | E23: 1 | F23: 1 | G23: 3 | J23: 2 | K23: 1 | AI23: =SUM(D23:AH23) -> 8 | AJ23: 18 | AK23: 18 | AL23: =AJ23-AK23 -> 0 | AM23: =B23 -> Posoldič | AN23: =COUNT(D23:AH23) -> 5 | AO23: 1 | AP23: 0 | AQ23: 3 | AR23: -14 | AS23: =+AN23/$AJ$3 -> 0.2 | AT23: =IF(AS23<0.5, "n.a.",(AO23+AP23/2)/AN23) -> n.a.
A24: =AK24 -> 19 | B24: Milda | Q24: 3 | AI24: =SUM(D24:AH24) -> 3 | AJ24: 19 | AK24: 19 | AL24: =AJ24-AK24 -> 0 | AM24: =B24 -> Milda | AN24: =COUNT(D24:AH24) -> 1 | AO24: 1 | AP24: 0 | AQ24: 0 | AR24: 5 | AS24: =+AN24/$AJ$3 -> 0.04 | AT24: =IF(AS24<0.5, "n.a.",(AO24+AP24/2)/AN24) -> n.a.
A25: =AK25 -> 20 | B25: Martin | Q25: 3 | AI25: =SUM(D25:AH25) -> 3 | AJ25: 20 | AK25: 20 | AL25: =AJ25-AK25 -> 0 | AM25: =B25 -> Martin | AN25: =COUNT(D25:AH25) -> 1 | AO25: 1 | AP25: 0 | AQ25: 0 | AR25: 5 | AS25: =+AN25/$AJ$3 -> 0.04 | AT25: =IF(AS25<0.5, "n.a.",(AO25+AP25/2)/AN25) -> n.a.
A26: =AK26 -> 21 | B26: Jirka | N26: 1 | Y26: 1 | AI26: =SUM(D26:AH26) -> 2 | AJ26: 21 | AK26: 21 | AL26: =AJ26-AK26 -> 0 | AM26: =B26 -> Jirka | AN26: =COUNT(D26:AH26) -> 2 | AO26: 0 | AP26: 0 | AQ26: 2 | AR26: -11 | AS26: =+AN26/$AJ$3 -> 0.08 | AT26: =IF(AS26<0.5, "n.a.",(AO26+AP26/2)/AN26) -> n.a.
A27: =AK27 -> 22 | B27: Josef | AI27: =SUM(D27:AH27) -> 0 | AJ27: 22 | AK27: 22 | AL27: =AJ27-AK27 -> 0 | AM27: =B27 -> Josef | AN27: =COUNT(D27:AH27) -> 0 | AO27: 0 | AP27: 0 | AQ27: 0 | AR27: 0 | AS27: =+AN27/$AJ$3 -> 0 | AT27: =IF(AS27<0.5, "n.a.",(AO27+AP27/2)/AN27) -> n.a.
A28: =AK28 -> 23 | B28: Bořek | AI28: =SUM(D28:AH28) -> 0 | AJ28: 23 | AK28: 23 | AL28: =AJ28-AK28 -> 0 | AM28: =B28 -> Bořek | AN28: =COUNT(D28:AH28) -> 0 | AO28: 0 | AP28: 0 | AQ28: 0 | AR28: 0 | AS28: =+AN28/$AJ$3 -> 0 | AT28: =IF(AS28<0.5, "n.a.",(AO28+AP28/2)/AN28) -> n.a.
A29: =AK29 -> 24 | B29: Pepa | AI29: =SUM(D29:AH29) -> 0 | AJ29: 24 | AK29: 24 | AL29: =AJ29-AK29 -> 0 | AM29: =B29 -> Pepa | AN29: =COUNT(D29:AH29) -> 0 | AO29: 0 | AP29: 0 | AQ29: 0 | AR29: 0 | AS29: =+AN29/$AJ$3 -> 0 | AT29: =IF(AS29<0.5, "n.a.",(AO29+AP29/2)/AN29) -> n.a.
A30: =AK30 -> 25 | B30: Petr | AI30: =SUM(D30:AH30) -> 0 | AJ30: 25 | AK30: 25 | AL30: =AJ30-AK30 -> 0 | AM30: =B30 -> Petr | AN30: =COUNT(D30:AH30) -> 0 | AO30: 0 | AP30: 0 | AQ30: 0 | AR30: 0 | AS30: =+AN30/$AJ$3 -> 0 | AT30: =IF(AS30<0.5, "n.a.",(AO30+AP30/2)/AN30) -> n.a.
AJ31: 26 | AK31: 26
B32: počet hráčů: | D32: =IF(COUNT(D6:D29) = 0, "n/a", COUNT(D6:D29)) -> 9 | E32: 9 | F32: 10 | G32: 10 | H32: 10 | I32: 11 | J32: 14 | K32: 11 | L32: 10 | M32: 6 | N32: 14 | O32: 16 | P32: 6 | Q32: 8 | R32: =IF(COUNT(R6:R30) = 0, "n/a", COUNT(R6:R30)) -> 12 | S32: =IF(COUNT(S6:S30) = 0, "n/a", COUNT(S6:S30)) -> 9 | T32: 11 | U32: 10 | V32: n/a | W32: 9 | X32: 9 | Y32: 9 | Z32: n/a | AA32: 10 | AB32: 11 | AC32: 10 | AD32: n/a | AE32: 10 | AF32: n/a | AG32: n/a | AH32: n/a | AI32: =AVERAGE(D32:AH32) -> 10.16 | AO32: 0 | AP32: 0 | AQ32: 0 | AR32: 0
B34: výhra | C34: 3 | G34: volí | L34: volí | P34: volí | S34: P | V34: volí | Z34: volí | AD34: volí | AI34: - při rovnosti bodů rozhoduje o pořadí vyšší počet účastí, potom skóre, úspěšnost, los
B35: remíza | C35: - | G35: poslední | L35: poslední | P35: poslední | V35: poslední | Z35: poslední | AD35: poslední | AI35: - procento úspěšnosti (M.V.P.) se počítá pouze u hráčů s minimálně 50% docházkou a o pořadí rozhodují % na desetinná místa
B36: prohra | C36: 1 | G36: dva z 10 | L36: dva z 10 | P36: dva z 10 | V36: dva z 10 | Z36: dva z 10 | AD36: dva z 10 | AI36: - v posledním "double" kole se všechny položky počítají dvojnásobně; rozdělení sudá / lichá
B37: neúčast | C37: 0 | AI37: - v prvních kolech sezóny se při shodném počtu bodů určuje pořadí podle poslední sezóny téhož období
AI38: - při remíze se kopou penalty

Sheet HRÁČ týdne a měsíce
B2: týden | C2: kolo | D2: hráč týdne | E2: hráč měsíce | G2: statistiky
B3: 40. | C3: 1. | D3: Láďa S. | E3: říjen | F3: Marek | G3: hráno: | H3: 4 | K3: Láďa S. | L3: 3
B4: 41. | C4: 2. | D4: Honza | G4: nehráno: | H4: 0 | K4: Aleš | L4: 3
B5: 42. | C5: 3. | D5: Marek | G5: bodů: | H5: 10 | K5: Honza | L5: 2
B6: 43. | C6: 4. | D6: Posoldič | K6: Michal | L6: 2
B7: 44. | C7: 5. | D7: Michal | E7: listopad | F7: Láďa | G7: hráno: | H7: 5 | K7: Eman | L7: 2
B8: 45. | C8: 6. | D8: Eman | G8: nehráno: | H8: 0 | K8: Kristalex | L8: 2
B9: 46. | C9: 7. | D9: Kristalex | G9: bodů: | H9: 13 | K9: Rosťa | L9: 2
B10: 47. | C10: 8. | D10: Rosťa | K10: Tomáš | L10: 2
B11: 48. | C11: 9. | D11: Karel | K11: Pája | L11: 2
B12: 49. | C12: 10. | D12: Eman | E12: prosinec | F12: Kristalex | G12: hráno: | H12: 5 | K12: Marek | L12: 1
B13: 50. | C13: 11. | D13: Rosťa | G13: nehráno: | H13: 0 | K13: Posoldič | L13: 1
B14: 51. | C14: 12. | D14: Honza | G14: bodů: | H14: 9 | K14: Karel | L14: 1
B15: 52. | C15: 13. | D15: Kristalex | K15: Venca | L15: 1
B16: 52. | C16: 14. | D16: Tomáš | K16: Čuďa | L16: 1
B17: 1. | C17: 15. | D17: Michal | E17: leden | F17: Eman | G17: hráno: | H17: 4
B18: 2. | C18: 16. | D18: Venca | G18: nehráno: | H18: 1
B19: 3. | C19: 17. | D19: Aleš | G19: bodů: | H19: 10
B20: 4. | C20: 18. | D20: Pája
B21: 5. | C21: 19. | D21: ---
B22: 6. | C22: 20. | D22: Tomáš | E22: únor | F22: Kristalex | G22: hráno: | H22: 3
B23: 7. | C23: 21. | D23: Láďa S. | G23: nehráno: | H23: 1
B24: 8. | C24: 22. | D24: Aleš | G24: bodů: | H24: 9
B25: 9. | C25: 23.
B26: 10. | C26: 24. | D26: Láďa S. | E26: březen | F26: Čuďa | G26: hráno: | H26: 3
B27: 11. | C27: 25. | D27: Pája | G27: nehráno: | H27: 1
B28: 12. | C28: 26. | D28: Aleš | G28: bodů: | H28: 9
B29: 13. | C29: 27.
B30: 14. | C30: 28. | D30: Čuďa | E30: duben | G30: hráno:
B31: 15. | C31: 29. | G31: nehráno:
B32: 16. | C32: 30. | G32: bodů:
B33: 17. | C33: 31.

Sheet SILVESTR. fotbal
D2: Polabiny | E2: Trnová | F2: Ohrazenice | G2: Trnová | H2: Stéblová | I2: Nemošice | J2: Stéblová | K2: Stéblová | L2: COVID-19 | M2: Stéblová
D3: 31.12. | E3: 31.12. | F3: 31.12. | G3: 31.12. | H3: 31.12. | I3: 31.12 | J3: 31.12. | K3: 31.12. | L3: 31.12. | M3: 31.12. | N3: hráno | O3: 9
D4: 2012 | E4: 2013 | F4: 2014 | G4: 2015 | H4: 2016 | I4: 2017 | J4: 2018 | K4: 2019 | L4: 2020 | M4: 2021 | N4: 9x
B5: POŘADÍ | D5: +1 | E5: +3 | F5: +6 | G5: 0 | H5: +11 | I5: +13 | J5: +5 | K5: +1 | L5: X | M5: +5 | N5: ÚČASTI | O5: BODY | P5: výhry | R5: remíz | S5: prohry | T5: SKÓRE | U5: docházka | V5: ÚSPĚŠNOST
B6: 1. | C6: Pája | D6: 3 | E6: 1 | F6: 1 | G6: 2 | H6: 1 | I6: 3 | J6: 3 | K6: 3 | L6: COVID-19 | M6: 1 | N6: =COUNT(D6:M6) -> 9 | O6: =SUM(D6:M6) -> 18 | P6: 4 | Q6: 4.5 | R6: 1 | S6: 4 | T6: -5 | U6: =N6/$O$3 -> 1 | V6: =Q6/N6 -> 0.5
B7: 2. | C7: Námořník | D7: 3 | E7: 1 | F7: 3 | H7: 3 | I7: 3 | N7: 5 | O7: 13 | P7: 4 | Q7: 4 | R7: 0 | S7: 1 | T7: 28 | U7: =N7/$O$3 -> 0.5555555556 | V7: =Q7/N7 -> 0.8
B8: 3. | C8: Dan | D8: 1 | E8: 3 | F8: 3 | G8: 2 | H8: 1 | I8: 3 | N8: 6 | O8: 13 | P8: 3 | Q8: 3.5 | R8: 1 | S8: 2 | T8: 10 | U8: 0.6666666667 | V8: 0.5833333333
B9: 4. | C9: Marcel | E9: 3 | F9: 3 | G9: 2 | H9: 3 | I9: 1 | N9: 5 | O9: 12 | P9: 3 | Q9: 3.5 | R9: 1 | S9: 1 | T9: 7 | U9: 0.5555555556 | V9: 0.7
B10: 5. | C10: Míla | D10: 1 | E10: 3 | F10: 1 | G10: 2 | H10: 3 | I10: 1 | N10: 6 | O10: 11 | P10: 2 | Q10: 2.5 | R10: 1 | S10: 3 | T10: -9 | U10: 0.6666666667 | V10: 0.4166666667
B11: 6. | C11: Nowwas | E11: 1 | F11: 3 | G11: 2 | H11: 3 | I11: 1 | N11: 5 | O11: 10 | P11: 2 | Q11: 2.5 | R11: 1 | S11: 2 | T11: 1 | U11: 0.5555555556 | V11: 0.5
B12: 7. | C12: Hošan | F12: 1 | G12: 2 | H12: 3 | I12: 3 | N12: 4 | O12: 9 | P12: 2 | Q12: 2.5 | R12: 1 | S12: 1 | T12: 18 | U12: 0.4444444444 | V12: 0.625
B13: 8. | C13: Karel | D13: 1 | E13: 3 | F13: 1 | G13: 2 | H13: 1 | I13: 1 | N13: 6 | O13: 9 | P13: 1 | Q13: 1.5 | R13: 1 | S13: 4 | T13: -28 | U13: 0.6666666667 | V13: 0.25
B14: 9. | C14: Martin Ko. | D14: 3 | E14: 1 | F14: 1 | G14: 2 | H14: 1 | I14: 1 | N14: 6 | O14: 9 | P14: 1 | Q14: 1.5 | R14: 1 | S14: 4 | T14: -32 | U14: 0.6666666667 | V14: 0.25
B15: 10 | C15: Kristalex | F15: 1 | G15: 2 | H15: 1 | I15: 3 | J15: 1 | K15: 1 | N15: 6 | O15: 9 | P15: 1 | Q15: 1.5 | R15: 1 | S15: 4 | T15: -10 | U15: 0.6666666667 | V15: 0.25
B16: 11. | C16: Jirka | J16: 3 | K16: 3 | N16: 2 | O16: 6 | P16: 2 | Q16: 2 | R16: 0 | S16: 0 | T16: 6 | U16: 0.2222222222 | V16: n.a.
B17: 12. | C17: Milhaus | J17: 3 | M17: 3 | N17: 2 | O17: 6 | P17: 2 | Q17: 1 | R17: 0 | S17: 0 | T17: 10 | U17: 0.2222222222 | V17: n.a.
B18: 13 | C18: Láďa S. | K18: 3 | M18: 3 | N18: 2 | O18: 6 | P18: 2 | Q18: 1 | R18: 0 | S18: 0 | T18: 6 | U18: 0.2222222222 | V18: n.a.
B19: 14. | C19: Aleš | K19: 3 | M19: 3 | N19: 2 | O19: 6 | P19: 2 | Q19: 1 | R19: 0 | S19: 0 | T19: 6 | U19: 0.2222222222 | V19: n.a.
B20: 15. | C20: Jozef | F20: 3 | G20: 2 | N20: 2 | O20: 5 | P20: 1 | Q20: 1.5 | R20: 1 | S20: 0 | T20: 6 | U20: 0.2222222222 | V20: n.a.
B21: 16. | C21: Venca | J21: 1 | K21: 3 | M21: 1 | N21: 3 | O21: 5 | P21: 1 | Q21: 1 | R21: 0 | S21: 2 | T21: -9 | U21: 0.3333333333 | V21: n.a.
B22: 17. | C22: Petr S. | F22: 3 | J22: 1 | N22: 2 | O22: 4 | P22: 1 | Q22: 1 | R22: 0 | S22: 1 | T22: 1 | U22: 0.2222222222 | V22: n.a.
B23: 18. | C23: Daniel | J23: 3 | K23: 1 | N23: 2 | O23: 4 | P23: 1 | Q23: 1 | R23: 0 | S23: 1 | T23: 4 | U23: 0.2222222222 | V23: n.a.
B24: 19. | C24: Marek | J24: 1 | K24: 3 | N24: 2 | O24: 4 | P24: 1 | Q24: 1 | R24: 0 | S24: 1 | T24: -4 | U24: 0.2222222222 | V24: n.a.
B25: 20. | C25: Černoch | I25: 3 | N25: 1 | O25: 3 | P25: 1 | Q25: 1 | R25: 0 | S25: 0 | T25: 13 | U25: 0.1111111111 | V25: n.a.
B26: 21. | C26: Dočkil | D26: 3 | N26: 1 | O26: 3 | P26: 1 | Q26: 1 | R26: 0 | S26: 0 | T26: 1 | U26: 0.1111111111 | V26: n.a.
B27: 22. | C27: Martin | M27: 3 | N27: 1 | O27: 3 | P27: 1 | Q27: 0 | R27: 0 | S27: 0 | T27: 5 | U27: 0.1111111111 | V27: n.a.
B28: 23. | C28: Honza | K28: 1 | M28: 1 | N28: 2 | O28: 2 | P28: 0 | Q28: 0 | R28: 0 | S28: 2 | T28: -6 | U28: 0.2222222222 | V28: n.a.
B29: 24. | C29: Červ | D29: 1 | N29: 1 | O29: 1 | P29: 0 | Q29: 0 | R29: 0 | S29: 1 | T29: 1 | U29: 0.1111111111 | V29: n.a.
B30: 25. | C30: Rosťa | I30: 1 | N30: 1 | O30: 1 | P30: 0 | Q30: 0 | R30: 0 | S30: 1 | T30: 1 | U30: 0.1111111111 | V30: n.a.
B31: 26. | C31: Čuďa | K31: 1 | N31: 1 | O31: 1 | P31: 0 | Q31: 0 | R31: 0 | S31: 1 | T31: -1 | U31: 0.1111111111 | V31: n.a.
B32: 27. | C32: Ondra | K32: 1 | N32: 1 | O32: 1 | P32: 0 | Q32: 0 | R32: 0 | S32: 1 | T32: -1 | U32: 0.1111111111 | V32: n.a.
B33: 28. | C33: Broňa | K33: 1 | N33: 1 | O33: 1 | P33: 0 | Q33: 0 | R33: 0 | S33: 1 | T33: -1 | U33: 0.1111111111 | V33: n.a.
B34: 29. | C34: Tomáš | M34: 1 | N34: 1 | O34: 1 | P34: 0 | Q34: 0 | R34: 0 | S34: 1 | T34: -5 | U34: 0.1111111111 | V34: n.a.
B35: počet hráčů | D35: =SUM(D6:D32)/2 -> 8 | E35: 8 | F35: 12 | G35: 10 | H35: 10 | I35: 12 | J35: 8 | K35: 11.5 | L35: COVID-19 | M35: =SUM(M6:M34)/2 -> 8

Sheet Celkové HISTORICKÉ pořadí
B1: Celkové HISTORICKÉ pořadí jediné a pravé původní FC Kličky od 1994
B3: pořadí | C3: hráč | D3: celkem b. | E3: L 2010 | F3: Z 2010/11 | G3: L 2011 | H3: Z 2011/12 | I3: L 2012 | J3: Z 2012/13 | K3: L 2013 | L3: Z 2013/14 | M3: L 2014 | N3: Z 2014/15 | O3: L 2015 | P3: Z 2015/16 | Q3: L 2016 | R3: Z 2016/17 | S3: L 2017 | T3: Z 2017/18 | U3: L 2017 | V3: Z 2018/19 | W3: L 2019 | X3: Z 2019/20 | Y3: L 2020 | Z3: Z 2020/21 | AA3: L 2021
B4: 1. | C4: Pája | D4: =SUM(E4:AA4) -> 135 | H4: 8 | I4: 1 | J4: 6 | K4: 2 | L4: 10 | M4: 6 | N4: 9 | O4: 4 | P4: 9 | Q4: 6 | R4: 7 | S4: 5 | T4: 9 | U4: 10 | V4: 9 | W4: 7 | X4: 9 | Y4: 9 | Z4: COVID-19 | AA4: 9 | AC4: LÉTO 2010 | AE4: b. | AF4: LÉTO 2011 | AH4: b. | AI4: LÉTO 2012 | AK4: b. | AL4: LÉTO 2013 | AN4: b. | AO4: LÉTO 2014 | AQ4: b.
B5: 2. | C5: Dan | D5: 119 | E5: 10 | F5: 8 | G5: 8 | H5: 5 | I5: 10 | J5: 2 | K5: 10 | L5: 9 | M5: 8 | N5: 10 | O5: 8 | P5: 8 | Q5: 2 | R5: 6 | S5: 7 | T5: 8 | AC5: 1. | AD5: Dan | AE5: 10 | AF5: 1. | AG5: Námořník | AH5: 10 | AI5: 1. | AJ5: Dan | AK5: 10 | AL5: 1. | AM5: Dan | AN5: 10 | AO5: 1. | AP5: Marcel | AQ5: 10
B6: 3. | C6: Kristalex | D6: 112 | N6: 8 | O6: 10 | P6: 4 | Q6: 10 | R6: 8 | S6: 9 | T6: 10 | U6: 9 | V6: 10 | W6: 10 | X6: 10 | Y6: 10 | AA6: 4 | AC6: 2. | AD6: Marcel | AE6: 9 | AF6: 2. | AG6: Kytka | AH6: 9 | AI6: 2. | AJ6: Martin Ko | AK6: 9 | AL6: 2. | AM6: Pepa | AN6: 9 | AO6: 2. | AP6: Ota | AQ6: 9
B7: 4. | C7: Míla | D7: 105 | E7: 8 | F7: 6 | G7: 7 | H7: 7 | I7: 7 | J7: 8 | K7: 8 | L7: 8 | M7: 4 | N7: 6 | O7: 5 | P7: 10 | Q7: 5 | R7: 2 | S7: 4 | T7: 6 | U7: 4 | AC7: 3. | AD7: Míla | AE7: 8 | AF7: 3. | AG7: Dan | AH7: 8 | AI7: 3. | AJ7: Kytka | AK7: 8 | AL7: 3. | AM7: Míla | AN7: 8 | AO7: 3. | AP7: Dan | AQ7: 8
B8: 5. | C8: Marcel | D8: 73 | E8: 9 | I8: 6 | K8: 4 | L8: 1 | M8: 10 | N8: 1 | O8: 9 | P8: 2 | Q8: 8 | R8: 9 | T8: 7 | U8: 7 | AC8: 4. | AD8: Farry | AE8: 7 | AF8: 4. | AG8: Míla | AH8: 7 | AI8: 4. | AJ8: Míla | AK8: 7 | AL8: 4. | AM8: Martin Ko | AN8: 7 | AO8: 4. | AP8: Martin Ko | AQ8: 7
B9: 6. | C9: Martin Ko. | D9: 72 | E9: 5 | G9: 6 | I9: 9 | J9: 5 | K9: 7 | L9: 2 | M9: 7 | N9: 2 | O9: 3 | P9: 7 | Q9: 3 | R9: 5 | S9: 8 | T9: 3 | AC9: 5. | AD9: Kytka | AE9: 6 | AF9: 5. | AG9: Martin Ko | AH9: 6 | AI9: 5. | AJ9: Marcel | AK9: 6 | AL9: 5. | AM9: Námořník | AN9: 6 | AO9: 5. | AP9: Pája | AQ9: 6
B10: 7. | C10: Kytka | D10: 64 | E10: 6 | F10: 10 | G10: 9 | H10: 10 | I10: 8 | J10: 9 | K10: 5 | L10: 7 | AC10: 6. | AD10: Martin K. | AE10: 5 | AF10: 6. | AG10: Farry | AH10: 5 | AI10: 6. | AJ10: Vláďa | AK10: 5 | AL10: 6. | AM10: Kytka | AN10: 5 | AO10: 6. | AP10: Námořník | AQ10: 5
B11: 8. | C11: Námořník | D11: 62 | E11: 1 | F11: 7 | G11: 10 | H11: 6 | I11: 4 | J11: 10 | K11: 6 | L11: 6 | M11: 5 | N11: 4 | R11: 3 | AC11: 7. | AD11: Franta | AE11: 4 | AF11: 7. | AG11: Jirka | AH11: 4 | AI11: 7. | AJ11: Námořník | AK11: 4 | AL11: 7. | AM11: Marcel | AN11: 4 | AO11: 7. | AP11: Míla | AQ11: 4
B12: 9. | C12: Karel | D12: 46 | F12: 5 | H12: 9 | J12: 7 | L12: 5 | N12: 7 | P12: 5 | R12: 4 | T12: 4 | AC12: 8. | AD12: Dočkil | AE12: 3 | AF12: 8. | AG12: Vláďa | AH12: 3 | AI12: 8. | AJ12: Pepa | AK12: 3 | AL12: 8. | AM12: Ctibor | AN12: 3 | AO12: 8. | AP12: Pepa | AQ12: 3
B13: 10. | C13: Rosťa | D13: 41 | M13: 2 | O13: 7 | P13: 1 | Q13: 7 | R13: 1 | S13: 3 | T13: 2 | V13: 6 | W13: 9 | X13: 3 | AC13: 9. | AD13: Olin | AE13: 2 | AF13: 9. | AG13: Dočkil | AH13: 2 | AI13: 9. | AJ13: Jindra | AK13: 2 | AL13: 9. | AM13: Pája | AN13: 2 | AO13: 9. | AP13: Rosťa | AQ13: 2
B14: 11. | C14: Hošan | D14: 40 | L14: 3 | N14: 5 | P14: 3 | Q14: 4 | R14: 10 | S14: 2 | T14: 5 | U14: 8 | AC14: 10. | AD14: Námořník | AE14: 1 | AF14: 10. | AG14: Honza T. | AH14: 1 | AI14: 10. | AJ14: Pája | AK14: 1 | AL14: 10. | AM14: Vláďa | AN14: 1 | AO14: 10. | AP14: Láďa | AQ14: 1
B15: 12. | C15: Marek | D15: 30 | U15: 6 | V15: 8 | X15: 2 | Y15: 6 | AA15: 8
B16: 13. | C16: Daniel | D16: 27 | U16: 3 | V16: 7 | X16: 6 | Y16: 4 | AA16: 7 | AC16: ZIMA 2010/2011 | AE16: b. | AF16: ZIMA 2011/2012 | AH16: b. | AI16: ZIMA 2012/2013 | AK16: b. | AL16: ZIMA 2013/2014 | AN16: b. | AO16: ZIMA 2014/2015 | AQ16: b.
B17: 14. | C17: Láďa S. | D17: 27 | H17: 1 | X17: 8 | Y17: 8 | AA17: 10 | AC17: 1. | AD17: Kytka | AE17: 10 | AF17: 1. | AG17: Kytka | AH17: 10 | AI17: 1. | AJ17: Námořník | AK17: 10 | AL17: 1. | AM17: Pája | AN17: 10 | AO17: 1. | AP17: Dan | AQ17: 10
B18: 15. | C18: Farry | D18: 21 | E18: 7 | F18: 9 | G18: 5 | AC18: 2. | AD18: Farry | AE18: 9 | AF18: 2. | AG18: Karel | AH18: 9 | AI18: 2. | AJ18: Kytka | AK18: 9 | AL18: 2. | AM18: Dan | AN18: 9 | AO18: 2. | AP18: Pája | AQ18: 9
B19: 16. | C19: Venca | D19: 21 | U19: 5 | V19: 5 | W19: 4 | X19: 7 | AC19: 3. | AD19: Dan | AE19: 8 | AF19: 3. | AG19: Pája | AH19: 8 | AI19: 3. | AJ19: Míla | AK19: 8 | AL19: 3. | AM19: Míla | AN19: 8 | AO19: 3. | AP19: Kristalex | AQ19: 8
B20: 17. | C20: Černoch | D20: 16 | Q20: 9 | S20: 6 | T20: 1 | AC20: 4. | AD20: Námořník | AE20: 7 | AF20: 4. | AG20: Míla | AH20: 7 | AI20: 4. | AJ20: Karel | AK20: 7 | AL20: 4. | AM20: Kytka | AN20: 7 | AO20: 4. | AP20: Karel | AQ20: 7
B21: 18. | C21: Ota | D21: 16 | M21: 9 | O21: 6 | Q21: 1 | AC21: 5. | AD21: Míla | AE21: 6 | AF21: 5. | AG21: Námořník | AH21: 6 | AI21: 5. | AJ21: Pája | AK21: 6 | AL21: 5. | AM21: Námořník | AN21: 6 | AO21: 5. | AP21: Míla | AQ21: 6
B22: 19. | C22: Jirka | D22: 15 | G22: 4 | W22: 6 | X22: 5 | AC22: 6. | AD22: Karel | AE22: 5 | AF22: 6. | AG22: Dan | AH22: 5 | AI22: 6. | AJ22: Martin Ko | AK22: 5 | AL22: 6. | AM22: Karel | AN22: 5 | AO22: 6. | AP22: Hošan | AQ22: 5
B23: 20. | C23: Pepa | D23: 15 | I23: 3 | K23: 9 | M23: 3 | AC23: 7. | AD23: Jarda | AE23: 4 | AF23: 7. | AG23: Jindra | AH23: 4 | AI23: 7. | AJ23: Jindra | AK23: 4 | AL23: 7. | AM23: Červ | AN23: 4 | AO23: 7. | AP23: Námořník | AQ23: 4
B24: 21. | C24: Aleš | D24: 14 | V24: 2 | W24: 8 | X24: 4 | AC24: 8. | AD24: Olin | AE24: 3 | AF24: 8. | AG24: Tomáš | AH24: 3 | AI24: 8. | AJ24: Červ | AK24: 3 | AL24: 8. | AM24: Hošan | AN24: 3 | AO24: 8. | AP24: Jozef | AQ24: 3
B25: 22. | C25: Melis | D25: 13 | U25: 1 | W25: 2 | Y25: 7 | AA25: 3 | AC25: 9. | AD25: Jindra | AE25: 2 | AF25: 9. | AG25: Červ | AH25: 2 | AI25: 9. | AJ25: Dan | AK25: 2 | AL25: 9. | AM25: Martin Ko | AN25: 2 | AO25: 9. | AP25: Martin Ko. | AQ25: 2
B26: 23. | C26: Jindra | D26: 12 | F26: 2 | H26: 4 | I26: 2 | J26: 4 | AC26: 10. | AD26: Vláďa | AE26: 1 | AF26: 10. | AG26: Luďa | AH26: 1 | AI26: 10. | AJ26: Vláďa | AK26: 1 | AL26: 10. | AM26: Marcel | AN26: 1 | AO26: 10. | AP26: Marcel | AQ26: 1
B27: 24. | C27: Toki | D27: 11 | G27: 1 | S27: 10
B28: 25. | C28: Vláďa | D28: 11 | F28: 1 | G28: 3 | I28: 5 | J28: 1 | K28: 1 | AC28: LÉTO 2015 | AE28: b. | AF28: ZIMA 2015/2016 | AH28: b. | AI28: LÉTO 2016 | AK28: b. | AL28: ZIMA 2016/2017 | AN28: b. | AO28: LÉTO 2017 | AQ28: b.
B29: 26. | C29: Červ | D29: 9 | H29: 2 | J29: 3 | L29: 4 | AC29: 1. | AD29: Kristalex | AE29: 10 | AF29: 1. | AG29: Míla | AH29: 10 | AI29: 1. | AJ29: Kristalex | AK29: 10 | AL29: 1. | AM29: Hošan | AN29: 10 | AO29: 1. | AP29: Toki | AQ29: 10
B30: 27. | C30: Michal | D30: 8 | W30: 5 | Y30: 1 | AA30: 2 | AC30: 2. | AD30: Marcel | AE30: 9 | AF30: 2. | AG30: Pája | AH30: 9 | AI30: 2. | AJ30: Honza Č. | AK30: 9 | AL30: 2. | AM30: Marcel | AN30: 9 | AO30: 2. | AP30: Kristalex | AQ30: 9
B31: 28. | C31: Láďa | D31: 7 | M31: 1 | V31: 4 | W31: 1 | X31: 1 | AC31: 3. | AD31: Dan | AE31: 8 | AF31: 3. | AG31: Dan | AH31: 8 | AI31: 3. | AJ31: Marcel | AK31: 8 | AL31: 3. | AM31: Kristalex | AN31: 8 | AO31: 3. | AP31: Martin Ko. | AQ31: 8
B32: 29. | C32: Nowwas | D32: 7 | O32: 1 | P32: 6 | AC32: 4. | AD32: Rosťa | AE32: 7 | AF32: 4. | AG32: Martin Ko. | AH32: 7 | AI32: 4. | AJ32: Rosťa | AK32: 7 | AL32: 4. | AM32: Pája | AN32: 7 | AO32: 4. | AP32: Dan | AQ32: 7
B33: 30. | C33: Špágr | D33: 6 | AA33: 6 | AC33: 5. | AD33: Ota | AE33: 6 | AF33: 5. | AG33: Nowwas | AH33: 6 | AI33: 5. | AJ33: Pája | AK33: 6 | AL33: 5. | AM33: Dan | AN33: 6 | AO33: 5. | AP33: Černoch | AQ33: 6
B34: 31. | C34: Dočkil | D34: 5 | E34: 3 | G34: 2 | AC34: 6. | AD34: Míla | AE34: 5 | AF34: 6. | AG34: Karel | AH34: 5 | AI34: 6. | AJ34: Míla | AK34: 5 | AL34: 6. | AM34: Martin Ko. | AN34: 5 | AO34: 6. | AP34: Pája | AQ34: 5
B35: 32. | C35: Eman | D35: 5 | AA35: 5 | AC35: 7. | AD35: Pája | AE35: 4 | AF35: 7. | AG35: Kristalex | AH35: 4 | AI35: 7. | AJ35: Hošan | AK35: 4 | AL35: 7. | AM35: Karel | AN35: 4 | AO35: 7. | AP35: Míla | AQ35: 4
B36: 33. | C36: Jozef | D36: 5 | N36: 3 | O36: 2 | AC36: 8. | AD36: Martin Ko. | AE36: 3 | AF36: 8. | AG36: Hošan | AH36: 3 | AI36: 8. | AJ36: Martin Ko. | AK36: 3 | AL36: 8. | AM36: Námořník | AN36: 3 | AO36: 8. | AP36: Rosťa | AQ36: 3
B37: 34. | C37: Olin | D37: 5 | E37: 2 | F37: 3 | AC37: 9. | AD37: Jozef | AE37: 2 | AF37: 9. | AG37: Marcel | AH37: 2 | AI37: 9. | AJ37: Dan | AK37: 2 | AL37: 9. | AM37: Míla | AN37: 2 | AO37: 9. | AP37: Hošan | AQ37: 2
B38: 35. | C38: Trojin | D38: 5 | Y38: 5 | AC38: 10. | AD38: Nowwas | AE38: 1 | AF38: 10. | AG38: Rosťa | AH38: 1 | AI38: 10. | AJ38: Ota | AK38: 1 | AL38: 10. | AM38: Rosťa | AN38: 1 | AO38: 10. | AP38: Bóřa | AQ38: 1
B39: 36. | C39: Franta | D39: 4 | E39: 4
B40: 37. | C40: Jarda | D40: 4 | F40: 4 | AC40: ZIMA 2017/2018 | AE40: b. | AF40: LÉTO 2018 | AH40: b. | AI40: ZIMA 2018/2019 | AK40: b. | AL40: LÉTO 2019 | AN40: b. | AO40: ZIMA 2019/2020 | AQ40: b.
B41: 38. | C41: Arpi | D41: 3 | Y41: 3 | AC41: 1. | AD41: Kristalex | AE41: 10 | AF41: 1. | AG41: Pája | AH41: 10 | AI41: 1. | AJ41: Kristalex | AK41: 10 | AL41: 1. | AM41: Kristalex | AN41: 10 | AO41: 1. | AP41: Kristalex | AQ41: 10
B42: 39. | C42: Ctibor | D42: 3 | K42: 3 | AC42: 2. | AD42: Pája | AE42: 9 | AF42: 2. | AG42: Kristalex | AH42: 9 | AI42: 2. | AJ42: Pája | AK42: 9 | AL42: 2. | AM42: Rosťa | AN42: 9 | AO42: 2. | AP42: Pája | AQ42: 9
B43: 40. | C43: Čuďa | D43: 3 | Y43: 2 | AA43: 1 | AC43: 3. | AD43: Dan | AE43: 8 | AF43: 3. | AG43: Hošan | AH43: 8 | AI43: 3. | AJ43: Marek | AK43: 8 | AL43: 3. | AM43: Aleš | AN43: 8 | AO43: 3. | AP43: Láďa S. | AQ43: 8
B44: 41. | C44: Honza | D44: 3 | W44: 3 | AC44: 4. | AD44: Marcel | AE44: 7 | AF44: 4. | AG44: Marcel | AH44: 7 | AI44: 4. | AJ44: Daniel | AK44: 7 | AL44: 4. | AM44: Pája | AN44: 7 | AO44: 4. | AP44: Venca | AQ44: 7
B45: 42. | C45: Jirka C. | D45: 3 | V45: 3 | AC45: 5. | AD45: Míla | AE45: 6 | AF45: 5. | AG45: Marek | AH45: 6 | AI45: 5. | AJ45: Rosťa | AK45: 6 | AL45: 5. | AM45: Jirka | AN45: 6 | AO45: 5. | AP45: Daniel | AQ45: 6
B46: 43. | C46: Tomáš | D46: 3 | H46: 3 | AC46: 6. | AD46: Hošan | AE46: 5 | AF46: 6. | AG46: Venca | AH46: 5 | AI46: 6. | AJ46: Venca | AK46: 5 | AL46: 6. | AM46: Michal | AN46: 5 | AO46: 6. | AP46: Jirka | AQ46: 5
B47: 44. | C47: Bazy | D47: 2 | U47: 2 | AC47: 7. | AD47: Karel | AE47: 4 | AF47: 7. | AG47: Míla | AH47: 4 | AI47: 7. | AJ47: Láďa | AK47: 4 | AL47: 7. | AM47: Venca | AN47: 4 | AO47: 7. | AP47: Aleš | AQ47: 4
B48: 45. | C48: Bóřa | D48: 1 | S48: 1 | AC48: 8. | AD48: Martin Ko. | AE48: 3 | AF48: 8. | AG48: Daniel | AH48: 3 | AI48: 8. | AJ48: Jirka | AK48: 3 | AL48: 8. | AM48: Honza | AN48: 3 | AO48: 8. | AP48: Rosťa | AQ48: 3
B49: 46. | C49: Jakub | D49: 1 | V49: 1 | AC49: 9. | AD49: Rosťa | AE49: 2 | AF49: 9. | AG49: Bazy | AH49: 2 | AI49: 9. | AJ49: Aleš | AK49: 2 | AL49: 9. | AM49: Melis | AN49: 2 | AO49: 9. | AP49: Marek | AQ49: 2
B50: 47. | C50: Luďa | D50: 1 | H50: 1 | AC50: 10. | AD50: Černoch | AE50: 1 | AF50: 10. | AG50: Melis | AH50: 1 | AI50: 10. | AJ50: Jakub | AK50: 1 | AL50: 10. | AM50: Láďa | AN50: 1 | AO50: 10. | AP50: Láďa | AQ50: 1
AC52: LÉTO 2020 | AE52: b. | AF52: ZIMA 2020/2021 | AI52: LÉTO 2021 | AK52: b.
AC53: 1. | AD53: Kristalex | AE53: 10 | AF53: 1. | AG53: COVID-19 | AI53: 1. | AJ53: Láďa S. | AK53: 10
AC54: 2. | AD54: Pája | AE54: 9 | AF54: 2. | AI54: 2. | AJ54: Pája | AK54: 9
AC55: 3. | AD55: Láďa S. | AE55: 8 | AF55: 3. | AI55: 3. | AJ55: Marek | AK55: 8
AC56: 4. | AD56: Melis | AE56: 7 | AF56: 4. | AI56: 4. | AJ56: Daniel | AK56: 7
AC57: 5. | AD57: Marek | AE57: 6 | AF57: 5. | AI57: 5. | AJ57: Špágr | AK57: 6
AC58: 6. | AD58: Trojin | AE58: 5 | AF58: 6. | AI58: 6. | AJ58: Eman | AK58: 5
AC59: 7. | AD59: Daniel | AE59: 4 | AF59: 7. | AI59: 7. | AJ59: Kristalex | AK59: 4
AC60: 8. | AD60: Arpi | AE60: 3 | AF60: 8. | AI60: 8. | AJ60: Melis | AK60: 3
AC61: 9. | AD61: Čuďa | AE61: 2 | AF61: 9. | AI61: 9. | AJ61: Michal | AK61: 2
AC62: 10. | AD62: Michal | AE62: 1 | AF62: 10. | AI62: 10. | AJ62: Čuďa | AK62: 1

Sheet Aktuální TABULKA (2) (hidden)
C1: kolo: | D1: 1 | E1: =D1+1 -> 2 | F1: =E1+1 -> 3 | G1: 4 | H1: 5 | I1: 6 | J1: 7 | K1: 8 | L1: 9 | M1: 10 | N1: 11 | O1: 12 | P1: 13 | Q1: 14 | R1: 15 | S1: 16 | T1: 17 | U1: 18 | V1: 19 | W1: 20 | X1: 21 | Y1: 22 | Z1: 23 | AA1: 24 | AB1: 25 | AC1: 26 | AD1: 27 | AE1: 28 | AF1: 29 | AG1: 30
B2: ZIMA 2015/2016 | D2: =IF(WEEKDAY(D3,2)=1,"Po",IF(WEEKDAY(D3,2)=2,"Út",IF(WEEKDAY(D3,2)=3,"St",IF(WEEKDAY(D3,2)=4,"Čt",IF(WEEKDAY(D3,2)=5,"Pá",IF(WEEKDAY(D3,2)=6,"So","NE")))))) -> Pá | E2: =IF(WEEKDAY(E3,2)=1,"Po",IF(WEEKDAY(E3,2)=2,"Út",IF(WEEKDAY(E3,2)=3,"St",IF(WEEKDAY(E3,2)=4,"Čt",IF(WEEKDAY(E3,2)=5,"Pá",IF(WEEKDAY(E3,2)=6,"So","NE")))))) -> Pá | F2: Pá | G2: Pá | H2: Pá | I2: Pá | J2: Pá | K2: Pá | L2: Pá | M2: Pá | N2: Pá | O2: Pá | P2: St | Q2: Pá | R2: Pá | S2: Pá | T2: Pá | U2: Pá | V2: Pá | W2: Pá | X2: Pá | Y2: Pá | Z2: Pá | AA2: Pá | AB2: Pá | AC2: Pá | AD2: Pá | AE2: Čt | AF2: Pá | AG2: Pá | AI2: hráno | AJ2: nehráno
D3: 2015-10-02 | E3: 2015-10-09 | F3: 2015-10-16 | G3: 2015-10-23 | H3: 2015-10-30 | I3: 2015-11-06 | J3: 2015-11-13 | K3: 2015-11-20 | L3: 2015-11-27 | M3: 2015-12-04 | N3: 2015-12-11 | O3: 2015-12-18 | P3: 2014-12-31 | Q3: 2016-01-08 | R3: 2016-01-15 | S3: 2016-01-22 | T3: 2016-01-29 | U3: 2016-02-05 | V3: 2016-02-12 | W3: 2016-02-19 | X3: 2016-02-26 | Y3: 2016-03-04 | Z3: 2016-03-11 | AA3: 2016-03-18 | AB3: 2016-03-25 | AC3: 2016-04-01 | AD3: 2016-04-08 | AE3: 2016-04-15 | AF3: 2016-04-22 | AG3: 2016-04-29 | AI3: =COUNTA(D5:AG5) -> 1 | AJ3: 0
C5: platba | D5: 2 | AH5: BODY | AI5: minulé pořadí | AJ5: POŘADÍ | AK5: Vývoj | AL5: HRÁČ | AM5: účasti | AN5: výhry | AO5: remízy | AP5: prohry | AQ5: skóre | AR5: docházka | AS5: úspěšnost
A6: =AJ6 -> 1 | B6: Marcel | D6: 3 | AH6: =SUM(D6:AG6) -> 3 | AI6: 1 | AJ6: 1 | AK6: =AI6-AJ6 -> 0 | AL6: =B6 -> Marcel | AM6: =COUNT(D6:AG6) -> 1 | AN6: 1 | AO6: 0 | AP6: 0 | AQ6: 2 | AR6: =+AM6/$AI$3 -> 1 | AS6: =IF(AR6<0.5, "n.a.",(AN6+AO6/2)/AM6) -> 1
A7: 2 | B7: Míla | D7: 3 | AH7: 3 | AI7: 2 | AJ7: 2 | AK7: 0 | AL7: Míla | AM7: 1 | AN7: 1 | AO7: 0 | AP7: 0 | AQ7: 2 | AR7: 1 | AS7: 1
A8: 3 | B8: Martin Ko. | D8: 3 | AH8: 3 | AI8: 3 | AJ8: 3 | AK8: 0 | AL8: Martin Ko. | AM8: 1 | AN8: 1 | AO8: 0 | AP8: 0 | AQ8: 2 | AR8: 1 | AS8: 1
A9: 4 | B9: Dan | C9: 1000 | D9: 3 | AH9: 3 | AI9: 4 | AJ9: 4 | AK9: 0 | AL9: Dan | AM9: 1 | AN9: 1 | AO9: 0 | AP9: 0 | AQ9: 2 | AR9: 1 | AS9: 1
A10: 5 | B10: Nowwas | D10: 1 | AH10: 1 | AI10: 5 | AJ10: 5 | AK10: 0 | AL10: Nowwas | AM10: 1 | AN10: 0 | AO10: 0 | AP10: 1 | AQ10: -2 | AR10: 1 | AS10: 0
A11: 6 | B11: Námořník | D11: 1 | AH11: 1 | AI11: 6 | AJ11: 6 | AK11: 0 | AL11: Námořník | AM11: 1 | AN11: 0 | AO11: 0 | AP11: 1 | AQ11: -2 | AR11: 1 | AS11: 0
A12: 7 | B12: Honza Č. | D12: 1 | AH12: 1 | AI12: 7 | AJ12: 7 | AK12: 0 | AL12: Honza Č. | AM12: 1 | AN12: 0 | AO12: 0 | AP12: 1 | AQ12: -2 | AR12: 1 | AS12: 0
A13: 8 | B13: Pája | D13: 1 | AH13: 1 | AI13: 8 | AJ13: 8 | AK13: 0 | AL13: Pája | AM13: 1 | AN13: 0 | AO13: 0 | AP13: 1 | AQ13: -2 | AR13: 1 | AS13: 0
A14: 9 | B14: Martin Kř. | D14: 1 | AH14: 1 | AI14: 9 | AJ14: 9 | AK14: 0 | AL14: Martin Kř. | AM14: 1 | AN14: 0 | AO14: 0 | AP14: 1 | AQ14: -2 | AR14: 1 | AS14: 0
A15: 10 | B15: Karel | AH15: 0 | AI15: 10 | AJ15: 10 | AK15: 0 | AL15: Karel | AM15: 0 | AN15: 0 | AO15: 0 | AP15: 0 | AQ15: 0 | AR15: 0 | AS15: n.a.
A16: 11 | B16: Martin H. | AH16: 0 | AI16: 11 | AJ16: 11 | AK16: 0 | AL16: Martin H. | AM16: 0 | AN16: 0 | AO16: 0 | AP16: 0 | AQ16: 0 | AR16: 0 | AS16: n.a.
A17: 12 | B17: Jozef | AH17: 0 | AI17: 12 | AJ17: 12 | AK17: 0 | AL17: Jozef | AM17: 0 | AN17: 0 | AO17: 0 | AP17: 0 | AQ17: 0 | AR17: 0 | AS17: n.a.
A18: 13 | B18: Rosťa | AH18: 0 | AI18: 13 | AJ18: 13 | AK18: 0 | AL18: Rosťa | AM18: 0 | AN18: 0 | AO18: 0 | AP18: 0 | AQ18: 0 | AR18: 0 | AS18: n.a.
A19: 14 | B19: Láďa | AH19: 0 | AI19: 14 | AJ19: 14 | AK19: 0 | AL19: Láďa | AM19: 0 | AN19: 0 | AO19: 0 | AP19: 0 | AQ19: 0 | AR19: 0 | AS19: n.a.
A20: 15 | B20: Červ | AH20: 0 | AI20: 15 | AJ20: 15 | AK20: 0 | AL20: Červ | AM20: 0 | AN20: 0 | AO20: 0 | AP20: 0 | AQ20: 0 | AR20: 0 | AS20: n.a.
A21: 16 | B21: Kytka | AH21: 0 | AI21: 16 | AJ21: 16 | AK21: 0 | AL21: Kytka | AM21: 0 | AN21: 0 | AO21: 0 | AP21: 0 | AQ21: 0 | AR21: 0 | AS21: n.a.
A22: 17 | B22: Vláďa | AH22: 0 | AI22: 17 | AJ22: 17 | AK22: 0 | AL22: Vláďa | AM22: 0 | AN22: 0 | AO22: 0 | AP22: 0 | AQ22: 0 | AR22: 0 | AS22: n.a.
A23: 18 | B23: Dočkil | AH23: 0 | AI23: 18 | AJ23: 18 | AK23: 0 | AL23: Dočkil | AM23: 0 | AN23: 0 | AO23: 0 | AP23: 0 | AQ23: 0 | AR23: 0 | AS23: n.a.
A24: =AJ24 -> 19 | AH24: =SUM(D24:X24) -> 0 | AI24: 19 | AJ24: 19 | AK24: =AI24-AJ24 -> 0 | AL24: 0 | AM24: =COUNT(D24:U24) -> 0 | AN24: 0 | AO24: 0 | AP24: 0 | AQ24: 0 | AR24: =+AM24/$AI$3 -> 0 | AS24: =IF(AR24<0.5, "n.a.",(AN24+AO24/2)/AM24) -> n.a.
A25: 20 | AH25: 0 | AI25: 20 | AJ25: 20 | AK25: 0 | AL25: 0 | AM25: 0 | AN25: 0 | AO25: 0 | AP25: 0 | AQ25: 0 | AR25: 0 | AS25: n.a.
A26: 21 | AH26: 0 | AI26: 21 | AJ26: 21 | AK26: 0 | AL26: 0 | AM26: 0 | AN26: 0 | AO26: 0 | AP26: 0 | AQ26: 0 | AR26: 0 | AS26: n.a.
A27: 22 | AH27: 0 | AI27: 22 | AJ27: 22 | AK27: 0 | AL27: 0 | AM27: 0 | AN27: 0 | AO27: 0 | AP27: 0 | AQ27: 0 | AR27: 0 | AS27: n.a.
A28: 23 | AH28: 0 | AI28: 23 | AJ28: 23 | AK28: 0 | AL28: 0 | AM28: 0 | AN28: 0 | AO28: 0 | AP28: 0 | AQ28: 0 | AR28: 0 | AS28: n.a.
A29: 24 | AH29: 0 | AI29: 24 | AJ29: 24 | AK29: 0 | AL29: 0 | AM29: 0 | AN29: 0 | AO29: 0 | AP29: 0 | AQ29: 0 | AR29: 0 | AS29: n.a.
B30: počet hráčů: | D30: =IF(COUNT(D6:D29) = 0, "n/a", COUNT(D6:D29)) -> 9 | E30: =IF(COUNT(E6:E29) = 0, "n/a", COUNT(E6:E29)) -> n/a | F30: n/a | G30: n/a | H30: n/a | I30: n/a | J30: n/a | K30: n/a | L30: n/a | M30: n/a | N30: n/a | O30: n/a | P30: n/a | Q30: n/a | R30: n/a | S30: n/a | T30: n/a | U30: n/a | V30: n/a | W30: n/a | X30: n/a | Y30: n/a | Z30: n/a | AA30: n/a | AB30: n/a | AC30: n/a | AD30: n/a | AE30: n/a | AF30: n/a | AG30: n/a | AH30: =AVERAGE(D30:E30) -> 9
B32: výhra | C32: 3 | AH32: - při rovnosti bodů rozhoduje o pořadí vyšší počet účastí, potom skóre, úspěšnost, los
B33: remíza | C33: 2 | AH33: - procento úspěšnosti se počítá pouze u hráčů s minimálně 50% docházkou
B34: prohra | C34: 1 | AH34: - v posledním "double" kole se všechny položky počítají dvojnásobně; rozdělení sudá / lichá
B35: neúčast | C35: 0 | AH35: - v prvních kolech sezóny se při shodném počtu bodů určuje pořadí podle posl. sezóny téhož období
